[Event "45th National Sub Junior 2019"]
[Site "Tiruchengode"]
[Date "2019.07.12"]
[Round "5.4"]
[White "Pranesh M"]
[Black "Mahitosh Dey"]
[Result "1/2-1/2"]
[ECO "C60"]
[WhiteElo "2343"]
[BlackElo "1955"]
[Annotator "NA"]
[PlyCount "66"]
[EventDate "2019.07.09"]
[EventCountry "IND"]
[SourceTitle "playchess.com"]
[Source "ChessBase"]
[SourceQuality "1"]
[TimeControl "5400+30"]

1. e4 {[%emt 0:00:00]} e5 {[%emt 0:00:02]} 2. Nf3 {[%emt 0:00:00]} Nc6 {[%emt 0:00:04]} 3. Bb5 {[%emt 0:00:00]} Nge7 {[%emt 0:00:04]} 4. d4 {[%emt 0:01:06]} exd4 {[%emt 0:00:08]} 5. Nxd4 {[%emt 0:00:06]} g6 {[%emt 0:00:05]} 6. Nxc6 {[%emt 0:02:33]} Nxc6 {[%emt 0:00:15]} 7. Bxc6 {[%emt 0:01:06]} dxc6 {[%emt 0:00:59]} 8. Qxd8+ {[%emt 0:02:29]} Kxd8 {[%emt 0:00:08]} 9. Bg5+ {[%emt 0:00:50]} Be7 {[%emt 0:00:05]} 10. Bxe7+ {[%emt 0:00:42]} Kxe7 {[%emt 0:00:06]} 11. Nc3 {[%emt 0:00:30]} Be6 {[%emt 0:00:06]} 12. Ke2 {[%emt 0:01:59]} f6 {[%emt 0:06:18]} 13. Ke3 {[%emt 0:01:45]} Rad8 {[%emt 0:01:33]} 14. Rad1 {[%emt 0:00:58]} Rd6 {[%emt 0:00:10]} 15. Rd3 {[%emt 0:04:09]} Rhd8 {[%emt 0:00:57]} 16. b3 {[%emt 0:04:51]} a6 {[%emt 0:01:45]} 17. Na4 {[%emt 0:07:13]} b6 {[%emt 0:08:26]} 18. Rxd6 {[%emt 0:00:57]} Rxd6 {[%emt 0:03:17]} 19. c4 {[%emt 0:00:46]} c5 {[%emt 0:02:53]} 20. Nc3 {[%emt 0:00:58]} Rd8 {[%emt 0:09:08]} 21. h4 {[%emt 0:04:29]} h5 {[%emt 0:00:26]} 22. Rc1 {[%emt 0:05:29]} Rc8 {[%emt 0:03:05]} 23. f3 {[%emt 0:07:25]} Rd8 {[%emt 0:03:59]} 24. Ne2 {[%emt 0:03:58]} c6 {[%emt 0:01:10]} 25. Nf4 {[%emt 0:00:34]} Bf7 {[%emt 0:00:18]} 26. Nd3 {[%emt 0:01:45]} Be6 {[%emt 0:00:08]} 27. Rc2 {[%emt 0:03:07]} Rc8 {[%emt 0:08:18]} 28. g3 {[%emt 0:05:55]} Rc7 {[%emt 0:05:04]} 29. Rc1 {[%emt 0:03:53]} Rc8 {[%emt 0:00:52]} 30. Rd1 {[%emt 0:02:49]} Rd8 {[%emt 0:00:36]} 31. Rd2 {[%emt 0:00:37]} a5 {[%emt 0:00:46]} 32. a4 {[%emt 0:01:03]} Rc8 {[%emt 0:01:19]} 33. e5 {[%emt 0:00:59]} Bf5 1/2-1/2

[Event "45th National Sub Junior 2019"]
[Site "Tiruchengode"]
[Date "2019.07.12"]
[Round "5.5"]
[White "Pranav Vijay"]
[Black "Aditya Varun Gampa"]
[Result "1-0"]
[ECO "B47"]
[WhiteElo "2265"]
[BlackElo "1918"]
[Annotator "NA"]
[PlyCount "101"]
[EventDate "2019.07.09"]
[EventCountry "IND"]
[SourceTitle "playchess.com"]
[Source "ChessBase"]
[SourceQuality "1"]
[TimeControl "5400+30"]

1. e4 {[%emt 0:00:00]} c5 {[%emt 0:00:11]} 2. Nf3 {[%emt 0:00:00]} e6 {[%emt 0:00:29]} 3. d4 {[%emt 0:00:00]} cxd4 {[%emt 0:00:35]} 4. Nxd4 {[%emt 0:00:10]} Nc6 {[%emt 0:00:25]} 5. Nc3 {[%emt 0:00:12]} Qc7 {[%emt 0:00:41]} 6. g3 {[%emt 0:00:13]} a6 {[%emt 0:01:14]} 7. Bg2 {[%emt 0:00:17]} Nf6 {[%emt 0:00:22]} 8. O-O {[%emt 0:00:32]} Nxd4 {[%emt 0:00:46]} 9. Qxd4 {[%emt 0:00:12]} Bc5 {[%emt 0:00:05]} 10. Qd1 {[%emt 0:01:06]} h5 {[%emt 0:01:05]} 11. Bf4 {[%emt 0:02:35]} d6 {[%emt 0:03:38]} 12. h3 {[%emt 0:04:18]} b5 {[%emt 0:08:29]} 13. Bxd6 {[%emt 0:11:25]} Bxd6 {[%emt 0:06:11]} 14. e5 {[%emt 0:00:09]} Bxe5 {[%emt 0:01:14]} 15. Bxa8 {[%emt 0:00:10]} Bxg3 {[%emt 0:15:57]} 16. fxg3 {[%emt 0:01:03]} Qa7+ {[%emt 0:00:44]} 17. Rf2 {[%emt 0:00:43]} Qxa8 {[%emt 0:00:34]} 18. Qd6 {[%emt 0:00:34]} Bd7 {[%emt 0:10:41]} 19. Rd1 {[%emt 0:01:02]} Qb7 {[%emt 0:00:49]} 20. Qd4 {[%emt 0:03:46]} Rh6 {[%emt 0:01:09]} 21. Rd3 {[%emt 0:13:17]} Rg6 {[%emt 0:01:35]} 22. Rxf6 {[%emt 0:01:27]} gxf6 {[%emt 0:04:38]} 23. Ne4 {[%emt 0:00:05]} e5 {[%emt 0:05:25]} 24. Nd6+ {[%emt 0:13:35]} Kf8 {[%emt 0:00:31]} 25. Nxb7 {[%emt 0:03:37]} exd4 {[%emt 0:00:09]} 26. Kh2 {[%emt 0:00:03]} f5 {[%emt 0:03:21]} 27. Rxd4 {[%emt 0:03:14]} Bc6 {[%emt 0:00:17]} 28. Nc5 {[%emt 0:00:26]} a5 {[%emt 0:00:55]} 29. c3 {[%emt 0:01:25]} Ke7 {[%emt 0:02:07]} 30. Rd2 {[%emt 0:01:58]} Rg5 {[%emt 0:01:18]} 31. Nd3 {[%emt 0:00:29]} Rg8 {[%emt 0:02:19]} 32. Nf4 {[%emt 0:00:31]} Rh8 {[%emt 0:00:15]} 33. h4 {[%emt 0:00:08]} Be4 {[%emt 0:00:51]} 34. Kg1 {[%emt 0:00:07]} b4 {[%emt 0:02:19]} 35. c4 {[%emt 0:01:25]} a4 {[%emt 0:00:40]} 36. Kf2 {[%emt 0:00:53]} a3 {[%emt 0:01:35]} 37. b3 {[%emt 0:01:54]} Rd8 {[%emt 0:01:17]} 38. Rxd8 {[%emt 0:00:25]} Kxd8 {[%emt 0:00:10]} 39. Ne2 {[%emt 0:00:04]} Bb1 {[%emt 0:01:17]} 40. Nc1 {[%emt 0:00:05]} Kc7 {[%emt 0:05:55]} 41. Ke3 {[%emt 0:00:06]} Kb6 {[%emt 0:03:30]} 42. Kd4 {[%emt 0:00:12]} f6 {[%emt 0:00:50]} 43. Kd5 {[%emt 0:00:24]} Be4+ {[%emt 0:01:13]} 44. Kd6 {[%emt 0:00:22]} Kb7 {[%emt 0:00:52]} 45. c5 {[%emt 0:00:21]} Kc8 {[%emt 0:01:16]} 46. c6 {[%emt 0:00:28]} Kd8 {[%emt 0:00:10]} 47. Ne2 {[%emt 0:00:39]} Bb1 {[%emt 0:00:14]} 48. Nd4 {[%emt 0:00:08]} Bd3 {[%emt 0:00:18]} 49. c7+ {[%emt 0:00:10]} Kc8 {[%emt 0:00:04]} 50. Nc6 {[%emt 0:00:04]} Bb5 {[%emt 0:00:14]} 51. Ne7+ {[%emt 0:00:06]} 1-0

[Event "45th National Sub Junior 2019"]
[Site "Tiruchengode"]
[Date "2019.07.12"]
[Round "5.6"]
[White "Anadkat Kartavya"]
[Black "Samant Aditya S"]
[Result "1/2-1/2"]
[ECO "B67"]
[WhiteElo "1941"]
[BlackElo "2296"]
[Annotator "NA"]
[PlyCount "78"]
[EventDate "2019.07.09"]
[EventCountry "IND"]
[SourceTitle "playchess.com"]
[Source "ChessBase"]
[SourceQuality "1"]
[TimeControl "5400+30"]

1. e4 {[%emt 0:00:00]} c5 {[%emt 0:00:00]} 2. Nf3 {[%emt 0:00:00]} d6 {[%emt 0:00:00]} 3. d4 {[%emt 0:00:00]} cxd4 {[%emt 0:00:00]} 4. Nxd4 {[%emt 0:00:00]} Nf6 {[%emt 0:00:00]} 5. Nc3 {[%emt 0:00:00]} Nc6 {[%emt 0:00:09]} 6. Bg5 {[%emt 0:00:00]} e6 {[%emt 0:00:05]} 7. Qd2 {[%emt 0:00:13]} a6 {[%emt 0:00:07]} 8. O-O-O {[%emt 0:00:07]} Bd7 {[%emt 0:00:09]} 9. f4 {[%emt 0:00:05]} b5 {[%emt 0:00:40]} 10. Bxf6 {[%emt 0:00:49]} gxf6 {[%emt 0:00:09]} 11. Kb1 {[%emt 0:01:12]} Qb6 {[%emt 0:00:09]} 12. Nxc6 {[%emt 0:00:25]} Bxc6 {[%emt 0:00:08]} 13. f5 {[%emt 0:01:36]} b4 {[%emt 0:00:09]} 14. Ne2 {[%emt 0:00:57]} e5 {[%emt 0:00:16]} 15. Ng3 {[%emt 0:00:50]} h5 {[%emt 0:00:12]} 16. h4 {[%emt 0:02:14]} Qc5 {[%emt 0:00:07]} 17. Bd3 {[%emt 0:03:07]} Bh6 {[%emt 0:00:21]} 18. Qe2 {[%emt 0:00:19]} Qe3 {[%emt 0:00:16]} 19. Rh3 {[%emt 0:11:31]} Qxe2 {[%emt 0:01:29]} 20. Bxe2 {[%emt 0:00:12]} Ke7 {[%emt 0:00:37]} 21. Bf3 {[%emt 0:01:00]} Be3 {[%emt 0:15:54]} 22. Nxh5 {[%emt 0:00:52]} Bc5 {[%emt 0:00:19]} 23. g4 {[%emt 0:02:23]} Rag8 {[%emt 0:01:29]} 24. Rh2 {[%emt 0:10:41]} Rh7 {[%emt 0:15:12]} 25. Rg2 {[%emt 0:03:53]} Rgh8 {[%emt 0:00:29]} 26. Re1 {[%emt 0:11:32]} a5 {[%emt 0:01:55]} 27. Rh1 {[%emt 0:08:16]} a4 {[%emt 0:04:49]} 28. Rg3 {[%emt 0:13:35]} Bd4 {[%emt 0:14:15]} 29. Rd1 {[%emt 0:03:56]} Bc5 {[%emt 0:04:29]} 30. Rh1 {[%emt 0:00:41]} Bb7 {[%emt 0:06:46]} 31. Rd1 {[%emt 0:01:25]} Ba6 {[%emt 0:04:36]} 32. Rg2 {[%emt 0:00:39]} Bc4 {[%emt 0:03:20]} 33. Rgd2 {[%emt 0:05:21]} Bb5 {[%emt 0:03:38]} 34. Ka1 {[%emt 0:03:14]} Bc4 {[%emt 0:06:41]} 35. Kb1 {[%emt 0:00:13]} a3 {[%emt 0:01:58]} 36. b3 {[%emt 0:00:15]} Bb5 {[%emt 0:00:12]} 37. Rg2 {[%emt 0:01:27]} Bc6 {[%emt 0:00:54]} 38. Rgd2 {[%emt 0:04:10]} Bb7 {[%emt 0:01:07]} 39. Rg2 {[%emt 0:00:56]} Bc6 {[%emt 0:02:59]} 1/2-1/2

[Event "45th National Sub Junior 2019"]
[Site "Tiruchengode"]
[Date "2019.07.12"]
[Round "5.7"]
[White "Praloy Sahoo"]
[Black "Kushagra Mohan"]
[Result "0-1"]
[ECO "B09"]
[WhiteElo "1905"]
[BlackElo "2250"]
[Annotator "NA"]
[PlyCount "114"]
[EventDate "2019.07.09"]
[EventCountry "IND"]
[SourceTitle "playchess.com"]
[Source "ChessBase"]
[SourceQuality "1"]
[TimeControl "5400+30"]

1. e4 {[%emt 0:00:00]} d6 {[%emt 0:00:06]} 2. d4 {[%emt 0:01:21]} Nf6 {[%emt 0:00:02]} 3. Nc3 {[%emt 0:02:07]} g6 {[%emt 0:00:01]} 4. f4 {[%emt 0:00:13]} Bg7 {[%emt 0:00:02]} 5. Nf3 {[%emt 0:00:06]} c5 {[%emt 0:00:14]} 6. Bb5+ {[%emt 0:00:10]} Bd7 {[%emt 0:00:12]} 7. e5 {[%emt 0:00:04]} Ng4 {[%emt 0:00:17]} 8. e6 {[%emt 0:07:26]} Bxb5 {[%emt 0:00:14]} 9. exf7+ {[%emt 0:00:27]} Kf8 {[%emt 0:00:05]} 10. Nxb5 {[%emt 0:00:49]} Qa5+ {[%emt 0:00:09]} 11. Nc3 {[%emt 0:00:41]} cxd4 {[%emt 0:00:18]} 12. Nxd4 {[%emt 0:02:48]} Kxf7 {[%emt 0:00:04]} 13. O-O {[%emt 0:14:37]} Qc5 {[%emt 0:00:18]} 14. Qxg4 {[%emt 0:05:09]} Bxd4+ {[%emt 0:00:18]} 15. Kh1 {[%emt 0:00:21]} Bxc3 {[%emt 0:00:06]} 16. bxc3 {[%emt 0:00:54]} Qf5 {[%emt 0:00:05]} 17. Qe2 {[%emt 0:01:57]} Nd7 {[%emt 0:01:32]} 18. Rb1 {[%emt 0:02:43]} b6 {[%emt 0:01:32]} 19. Be3 {[%emt 0:15:00]} Rac8 {[%emt 0:00:15]} 20. Bd4 {[%emt 0:03:08]} Rhe8 {[%emt 0:00:05]} 21. Rbe1 {[%emt 0:00:20]} Kg8 {[%emt 0:04:31]} 22. Rf3 {[%emt 0:01:34]} Rc7 {[%emt 0:06:51]} 23. h3 {[%emt 0:04:19]} Nc5 {[%emt 0:01:57]} 24. Kg1 {[%emt 0:04:09]} e6 {[%emt 0:05:43]} 25. c4 {[%emt 0:03:05]} Rce7 {[%emt 0:04:07]} 26. Kh2 {[%emt 0:06:47]} Nd7 {[%emt 0:05:07]} 27. Qd2 {[%emt 0:00:21]} e5 {[%emt 0:04:37]} 28. Bc3 {[%emt 0:11:08]} Qe6 {[%emt 0:09:33]} 29. Rd3 {[%emt 0:01:54]} Qxc4 {[%emt 0:01:36]} 30. Rxd6 {[%emt 0:03:56]} Qxf4+ {[%emt 0:00:40]} 31. Qxf4 {[%emt 0:00:08]} exf4 {[%emt 0:00:02]} 32. Rxe7 {[%emt 0:00:38]} Rxe7 {[%emt 0:00:03]} 33. Bd2 {[%emt 0:00:09]} g5 {[%emt 0:05:18]} 34. h4 {[%emt 0:00:26]} h6 {[%emt 0:00:02]} 35. Bc3 {[%emt 0:06:39]} Kh7 {[%emt 0:01:37]} 36. hxg5 {[%emt 0:00:43]} hxg5 {[%emt 0:00:06]} 37. Kh3 {[%emt 0:00:02]} Re3+ {[%emt 0:04:56]} 38. Kg4 {[%emt 0:00:05]} Ne5+ {[%emt 0:00:05]} 39. Bxe5 {[%emt 0:00:56]} Rxe5 {[%emt 0:00:01]} 40. g3 {[%emt 0:00:52]} fxg3 {[%emt 0:00:32]} 41. Kxg3 {[%emt 0:00:16]} Ra5 {[%emt 0:00:34]} 42. Kg4 {[%emt 0:00:44]} Kg7 {[%emt 0:00:11]} 43. a4 {[%emt 0:00:59]} Kf7 {[%emt 0:00:31]} 44. Rd4 {[%emt 0:00:40]} Ke6 {[%emt 0:00:26]} 45. Rb4 {[%emt 0:00:50]} Kd6 {[%emt 0:00:24]} 46. Kh5 {[%emt 0:00:14]} Kc6 {[%emt 0:00:59]} 47. Re4 {[%emt 0:00:34]} Kb7 {[%emt 0:00:13]} 48. Kg4 {[%emt 0:00:19]} Ka6 {[%emt 0:00:10]} 49. Rd4 {[%emt 0:00:44]} Rc5 {[%emt 0:00:07]} 50. Rd2 {[%emt 0:00:32]} Ka5 {[%emt 0:00:08]} 51. Rd7 {[%emt 0:00:03]} a6 {[%emt 0:00:26]} 52. Rd4 {[%emt 0:00:48]} Rxc2 {[%emt 0:00:26]} 53. Kxg5 {[%emt 0:00:08]} Ra2 {[%emt 0:00:04]} 54. Rd5+ {[%emt 0:00:25]} Kxa4 {[%emt 0:00:13]} 55. Kf4 {[%emt 0:00:07]} b5 {[%emt 0:00:17]} 56. Ke3 {[%emt 0:00:04]} Rc2 {[%emt 0:00:10]} 57. Rd1 {[%emt 0:00:15]} Rc6 {[%emt 0:00:10]} 0-1

[Event "45th National Sub Junior 2019"]
[Site "Tiruchengode"]
[Date "2019.07.12"]
[Round "5.8"]
[White "Rathneesh R"]
[Black "Ayushh Ravikumar"]
[Result "1/2-1/2"]
[ECO "C54"]
[WhiteElo "2226"]
[BlackElo "1946"]
[Annotator "NA"]
[PlyCount "124"]
[EventDate "2019.07.09"]
[EventCountry "IND"]
[SourceTitle "playchess.com"]
[Source "ChessBase"]
[SourceQuality "1"]
[TimeControl "5400+30"]

1. e4 {[%emt 0:00:00]} e5 {[%emt 0:00:36]} 2. Nf3 {[%emt 0:00:22]} Nc6 {[%emt 0:00:28]} 3. Bc4 {[%emt 0:00:27]} Bc5 {[%emt 0:00:37]} 4. O-O {[%emt 0:00:08]} Nf6 {[%emt 0:00:28]} 5. d3 {[%emt 0:00:28]} d6 {[%emt 0:00:40]} 6. c3 {[%emt 0:01:15]} a6 {[%emt 0:00:41]} 7. Bb3 {[%emt 0:01:32]} h6 {[%emt 0:02:05]} 8. Re1 {[%emt 0:01:20]} Ba7 {[%emt 0:02:49]} 9. Nbd2 {[%emt 0:01:42]} Ne7 {[%emt 0:05:28]} 10. Nf1 {[%emt 0:14:04]} Ng6 {[%emt 0:01:26]} 11. Ng3 {[%emt 0:02:41]} O-O {[%emt 0:02:19]} 12. h3 {[%emt 0:01:25]} Kh7 {[%emt 0:09:38]} 13. d4 {[%emt 0:04:58]} Bd7 {[%emt 0:10:35]} 14. Be3 {[%emt 0:11:19]} Qc8 {[%emt 0:09:45]} 15. Qd3 {[%emt 0:19:01]} b5 {[%emt 0:05:25]} 16. dxe5 {[%emt 0:10:52]} dxe5 {[%emt 0:01:56]} 17. Bxa7 {[%emt 0:03:27]} Rxa7 {[%emt 0:00:07]} 18. Qe3 {[%emt 0:00:27]} Ra8 {[%emt 0:06:19]} 19. Rad1 {[%emt 0:10:51]} Be6 {[%emt 0:03:41]} 20. Bxe6 {[%emt 0:02:58]} Qxe6 {[%emt 0:00:22]} 21. b3 {[%emt 0:01:19]} Nd7 {[%emt 0:04:19]} 22. Nf5 {[%emt 0:03:02]} Rfd8 {[%emt 0:03:45]} 23. Rd2 {[%emt 0:02:16]} Ndf8 {[%emt 0:06:32]} 24. Red1 {[%emt 0:01:38]} Rxd2 {[%emt 0:01:59]} 25. Rxd2 {[%emt 0:00:33]} Rc8 {[%emt 0:04:07]} 26. g3 {[%emt 0:02:07]} Nd7 {[%emt 0:03:02]} 27. Nh2 {[%emt 0:01:04]} Nf6 {[%emt 0:02:26]} 28. Ng4 {[%emt 0:00:29]} Nxg4 {[%emt 0:01:49]} 29. hxg4 {[%emt 0:00:01]} f6 {[%emt 0:03:12]} 30. Qc5 {[%emt 0:00:51]} Nf8 {[%emt 0:01:28]} 31. Qd5 {[%emt 0:00:53]} Qxd5 {[%emt 0:01:16]} 32. Rxd5 {[%emt 0:00:15]} g6 {[%emt 0:02:31]} 33. Ne7 {[%emt 0:00:53]} Re8 {[%emt 0:01:19]} 34. Nc6 {[%emt 0:00:05]} Re6 {[%emt 0:01:36]} 35. Nb8 {[%emt 0:01:22]} Rb6 {[%emt 0:02:11]} 36. Nd7 {[%emt 0:00:11]} Nxd7 {[%emt 0:00:01]} 37. Rxd7+ {[%emt 0:00:01]} Kg8 {[%emt 0:00:08]} 38. Rxc7 {[%emt 0:00:03]} Rd6 {[%emt 0:00:05]} 39. a4 {[%emt 0:02:17]} bxa4 {[%emt 0:00:49]} 40. bxa4 {[%emt 0:00:01]} Rd1+ {[%emt 0:00:14]} 41. Kg2 {[%emt 0:00:01]} Ra1 {[%emt 0:00:11]} 42. Rc4 {[%emt 0:01:36]} g5 {[%emt 0:01:38]} 43. Kf3 {[%emt 0:00:31]} Kf7 {[%emt 0:00:15]} 44. Ke2 {[%emt 0:00:36]} Ra2+ {[%emt 0:01:06]} 45. Ke3 {[%emt 0:00:06]} Kg6 {[%emt 0:00:30]} 46. Rb4 {[%emt 0:00:56]} a5 {[%emt 0:00:26]} 47. Rc4 {[%emt 0:00:02]} Ra1 {[%emt 0:00:37]} 48. Kd3 {[%emt 0:00:43]} Ra2 {[%emt 0:00:10]} 49. Ke3 {[%emt 0:00:36]} Kf7 {[%emt 0:00:11]} 50. f4 {[%emt 0:00:37]} gxf4+ {[%emt 0:01:09]} 51. gxf4 {[%emt 0:00:02]} exf4+ {[%emt 0:00:28]} 52. Kxf4 {[%emt 0:00:01]} Kg6 {[%emt 0:00:13]} 53. Rd4 {[%emt 0:00:55]} Ra3 {[%emt 0:00:16]} 54. Rc4 {[%emt 0:00:15]} Ra1 {[%emt 0:00:15]} 55. Rc6 {[%emt 0:01:14]} Rxa4 {[%emt 0:01:13]} 56. c4 {[%emt 0:00:06]} Ra1 {[%emt 0:00:28]} 57. e5 {[%emt 0:00:29]} Rf1+ {[%emt 0:00:03]} 58. Kg3 {[%emt 0:00:11]} Kf7 {[%emt 0:00:27]} 59. exf6 {[%emt 0:00:43]} Rxf6 {[%emt 0:00:06]} 60. Rc7+ {[%emt 0:00:10]} Kg6 {[%emt 0:00:29]} 61. c5 {[%emt 0:00:11]} a4 {[%emt 0:00:13]} 62. c6 {[%emt 0:01:11]} a3 {[%emt 0:00:39]} 1/2-1/2

[Event "45th National Sub Junior 2019"]
[Site "Tiruchengode"]
[Date "2019.07.12"]
[Round "5.9"]
[White "Konatham Snehil"]
[Black "Ajay Karthikeyan"]
[Result "0-1"]
[ECO "C41"]
[WhiteElo "1869"]
[BlackElo "2216"]
[Annotator "NA"]
[PlyCount "56"]
[EventDate "2019.07.09"]
[EventCountry "IND"]
[SourceTitle "playchess.com"]
[Source "ChessBase"]
[SourceQuality "1"]
[TimeControl "5400+30"]

1. d4 {[%emt 0:00:00]} d6 {[%emt 0:00:00]} 2. e4 {[%emt 0:00:04]} Nf6 {[%emt 0:00:00]} 3. Nc3 {[%emt 0:00:08]} Nbd7 {[%emt 0:00:50]} 4. Nf3 {[%emt 0:03:27]} e5 {[%emt 0:00:10]} 5. Be3 {[%emt 0:03:40]} Be7 {[%emt 0:01:48]} 6. dxe5 {[%emt 0:06:27]} dxe5 {[%emt 0:00:27]} 7. Bc4 {[%emt 0:01:34]} O-O {[%emt 0:00:30]} 8. O-O {[%emt 0:00:27]} c6 {[%emt 0:00:56]} 9. Qd3 {[%emt 0:08:04]} b5 {[%emt 0:12:15]} 10. Bb3 {[%emt 0:00:14]} Ng4 {[%emt 0:08:01]} 11. Rad1 {[%emt 0:03:20]} Nxe3 {[%emt 0:06:25]} 12. Qxe3 {[%emt 0:00:18]} Qc7 {[%emt 0:00:29]} 13. Ne2 {[%emt 0:10:38]} Nc5 {[%emt 0:13:47]} 14. Ng3 {[%emt 0:00:14]} a5 {[%emt 0:01:22]} 15. c3 {[%emt 0:01:12]} Nxb3 {[%emt 0:01:55]} 16. axb3 {[%emt 0:00:02]} Be6 {[%emt 0:00:37]} 17. Nf5 {[%emt 0:00:22]} Bxb3 {[%emt 0:02:09]} 18. Rd2 {[%emt 0:00:24]} f6 {[%emt 0:04:10]} 19. N3h4 {[%emt 0:01:31]} Rfd8 {[%emt 0:06:27]} 20. Qg3 {[%emt 0:08:28]} Bf8 {[%emt 0:00:40]} 21. Rxd8 {[%emt 0:01:14]} Rxd8 {[%emt 0:00:30]} 22. Ne3 {[%emt 0:02:53]} a4 {[%emt 0:02:28]} 23. Ng4 {[%emt 0:00:23]} Kh8 {[%emt 0:01:23]} 24. Qh3 {[%emt 0:01:08]} Qf7 {[%emt 0:00:36]} 25. Nf3 {[%emt 0:01:11]} Qg6 {[%emt 0:09:30]} 26. Re1 {[%emt 0:03:12]} Be6 {[%emt 0:00:16]} 27. Ngxe5 {[%emt 0:01:58]} fxe5 {[%emt 0:00:03]} 28. Qh4 {[%emt 0:00:08]} Qf6 {[%emt 0:00:23]} 0-1

[Event "45th National Sub Junior 2019"]
[Site "Tiruchengode"]
[Date "2019.07.12"]
[Round "5.10"]
[White "Arjun, Gupta"]
[Black "Soham Kamotra"]
[Result "0-1"]
[ECO "D02"]
[WhiteElo "1851"]
[BlackElo "2136"]
[Annotator "NA"]
[PlyCount "66"]
[EventDate "2019.07.09"]
[EventCountry "IND"]
[SourceTitle "playchess.com"]
[Source "ChessBase"]
[SourceQuality "1"]
[TimeControl "5400+30"]

1. d4 {[%emt 0:00:00]} Nf6 {[%emt 0:00:00]} 2. Bf4 {[%emt 0:00:00]} e6 {[%emt 0:00:00]} 3. e3 {[%emt 0:00:00]} b6 {[%emt 0:00:04]} 4. Nf3 {[%emt 0:00:00]} Bb7 {[%emt 0:00:07]} 5. Bd3 {[%emt 0:00:01]} d5 {[%emt 0:00:46]} 6. Nbd2 {[%emt 0:00:33]} Bd6 {[%emt 0:00:06]} 7. Ne5 {[%emt 0:01:26]} O-O {[%emt 0:00:32]} 8. Bg3 {[%emt 0:01:19]} c5 {[%emt 0:01:00]} 9. c3 {[%emt 0:00:06]} Nc6 {[%emt 0:00:23]} 10. f4 {[%emt 0:00:09]} Ne7 {[%emt 0:00:15]} 11. Qf3 {[%emt 0:00:10]} Nf5 {[%emt 0:00:55]} 12. Bf2 {[%emt 0:00:07]} Be7 {[%emt 0:00:03]} 13. g4 {[%emt 0:00:14]} Nd6 {[%emt 0:00:06]} 14. g5 {[%emt 0:00:06]} Nfe4 {[%emt 0:00:04]} 15. Rg1 {[%emt 0:00:25]} Qe8 {[%emt 0:19:38]} 16. h4 {[%emt 0:02:34]} f5 {[%emt 0:07:26]} 17. gxf6 {[%emt 0:06:54]} Bxf6 {[%emt 0:00:25]} 18. h5 {[%emt 0:04:28]} Rc8 {[%emt 0:11:14]} 19. Ke2 {[%emt 0:11:02]} Rc7 {[%emt 0:05:26]} 20. Rg2 {[%emt 0:06:40]} cxd4 {[%emt 0:05:47]} 21. exd4 {[%emt 0:01:39]} Bxe5 {[%emt 0:05:59]} 22. dxe5 {[%emt 0:00:52]} Nxd2 {[%emt 0:02:08]} 23. Kxd2 {[%emt 0:11:27]} Nc4+ {[%emt 0:05:47]} 24. Kc2 {[%emt 0:02:35]} Nxe5 {[%emt 0:01:12]} 25. Qe2 {[%emt 0:02:00]} Nxd3 {[%emt 0:00:07]} 26. Qxd3 {[%emt 0:00:01]} d4 {[%emt 0:02:45]} 27. Rg4 {[%emt 0:01:59]} dxc3 {[%emt 0:02:37]} 28. bxc3 {[%emt 0:00:51]} Qa4+ {[%emt 0:00:57]} 29. Kb2 {[%emt 0:00:08]} Be4 {[%emt 0:00:40]} 30. Qd4 {[%emt 0:00:44]} Qc2+ {[%emt 0:00:11]} 31. Ka3 {[%emt 0:00:14]} Rxc3+ {[%emt 0:00:05]} 32. Kb4 {[%emt 0:00:07]} Qb2+ {[%emt 0:00:03]} 33. Ka4 {[%emt 0:00:15]} Ra3# {[%emt 0:00:34]} 0-1

[Event "45th National Sub Junior 2019"]
[Site "Tiruchengode"]
[Date "2019.07.12"]
[Round "6.1"]
[White "Raja Rithvik R"]
[Black "Nikhil Magizhnan"]
[Result "1-0"]
[ECO "D34"]
[WhiteElo "2357"]
[BlackElo "2164"]
[Annotator "ChessBase"]
[PlyCount "87"]
[EventDate "2019.07.09"]
[EventCountry "IND"]
[SourceTitle "playchess.com"]
[Source "ChessBase"]
[SourceQuality "1"]
[TimeControl "5400+30"]

1. Nf3 {[%emt 0:00:06]} Nf6 {[%emt 0:00:17]} 2. c4 {[%emt 0:00:13]} e6 {[%emt 0:00:18]} 3. g3 {[%emt 0:00:38]} d5 {[%emt 0:04:04]} 4. d4 {[%emt 0:00:04]} c5 {[%emt 0:09:02]} 5. Bg2 {[%emt 0:00:31]} cxd4 {[%emt 0:00:25]} 6. O-O {[%emt 0:00:05]} Be7 {[%emt 0:06:05]} 7. Nxd4 {[%emt 0:03:27]} O-O {[%emt 0:00:47]} 8. cxd5 {[%emt 0:01:13]} exd5 {[%emt 0:00:08]} 9. Nc3 {[%emt 0:00:28]} Nc6 {[%emt 0:00:35]} 10. Be3 {[%emt 0:08:02]} Be6 {[%emt 0:05:47]} 11. Qa4 {[%emt 0:10:53]} Qd7 {[%emt 0:05:09]} 12. Rfd1 {[%emt 0:00:51]} Bh3 {[%emt 0:04:41]} 13. Bh1 {[%emt 0:14:05]} Rfd8 {[%emt 0:10:54]} 14. Rac1 {[%emt 0:08:04]} Be6 {[%emt 0:02:50]} 15. Ncb5 {[%emt 0:10:55]} Bg4 {[%emt 0:30:30]} 16. Nxc6 {[%emt 0:11:42]} bxc6 {[%emt 0:00:04]} 17. Nd4 {[%emt 0:00:07]} c5 {[%emt 0:01:21]} 18. Qxd7 {[%emt 0:00:07]} Rxd7 {[%emt 0:01:56]} 19. Nc6 {[%emt 0:00:41]} Rc8 {[%emt 0:01:54]} 20. Ne5 {[%emt 0:12:41]} Rdd8 {[%emt 0:00:18]} 21. Nxg4 {[%emt 0:02:36]} Nxg4 {[%emt 0:00:03]} 22. Bf4 {[%emt 0:01:34]} Nf6 {[%emt 0:01:16]} 23. Rc2 {[%emt 0:02:15]} h6 {[%emt 0:03:10]} 24. Bf3 {[%emt 0:00:59]} Rd7 {[%emt 0:05:42]} 25. Be5 {[%emt 0:00:25]} Rcd8 {[%emt 0:01:15]} 26. Rcd2 {[%emt 0:01:12]} Kf8 {[%emt 0:01:12]} 27. b3 {[%emt 0:01:01]} a5 {[%emt 0:02:21]} 28. e3 {[%emt 0:02:26]} h5 {[%emt 0:01:22]} 29. h3 {[%emt 0:01:31]} g6 {[%emt 0:00:27]} 30. Kg2 {[%emt 0:01:06]} a4 {[%emt 0:00:31]} 31. g4 {[%emt 0:02:54]} axb3 {[%emt 0:00:14]} 32. axb3 {[%emt 0:00:03]} hxg4 {[%emt 0:00:50]} 33. hxg4 {[%emt 0:00:02]} Ke8 {[%emt 0:00:24]} 34. Rh1 {[%emt 0:02:08]} Ng8 {[%emt 0:00:35]} 35. Rhd1 {[%emt 0:01:47]} Bf6 {[%emt 0:00:22]} 36. Bxd5 {[%emt 0:00:35]} Bxe5 {[%emt 0:00:28]} 37. Bc6 {[%emt 0:00:04]} Nf6 {[%emt 0:00:09]} 38. g5 {[%emt 0:00:17]} Kf8 {[%emt 0:00:27]} 39. Bxd7 {[%emt 0:00:18]} Ne4 {[%emt 0:00:05]} 40. Rc2 {[%emt 0:00:55]} Nc3 {[%emt 0:00:25]} 41. Rd3 {[%emt 0:00:26]} Ke7 {[%emt 0:00:04]} 42. Bb5 {[%emt 0:00:37]} Nxb5 {[%emt 0:00:59]} 43. Rxd8 {[%emt 0:00:07]} Kxd8 {[%emt 0:00:14]} 44. Rxc5 {[%emt 0:01:49]} 1-0